lending/lending_fUSD_20251111
["ID","MTS","AMOUNT","RATE_DAILY","PERIOD"]
[393605562,1762847456108,-500.0,0.00039683,120]
[393605563,1762847456117,-500.0,0.00039683,120]
[393605564,1762847456127,-500.0,0.00039683,120]
[393605565,1762847456136,-500.0,0.00039683,120]
[393605566,1762847456145,-165.49028942,0.00039683,120]
[393605567,1762847456155,-500.0,0.00039686,120]
[393605568,1762847456165,-500.0,0.00039686,120]
[393605569,1762847456175,-500.0,0.00039686,120]
[393605570,1762847456184,-459.59484775,0.00039686,120]
[393605571,1762847456193,-572.56,0.00039686,120]
[393605572,1762847456203,-572.56,0.00039686,120]
[393605573,1762847456212,-572.56,0.00039686,120]
[393605574,1762847456222,-572.56,0.00039686,120]
[393605575,1762847456236,-572.56,0.00039686,120]
[393605576,1762847456246,-572.56,0.00039686,120]
[393605577,1762847456256,-572.56,0.00039686,120]
[393605578,1762847456265,-572.56,0.00039686,120]
[393605579,1762847456275,-572.56,0.00039686,120]
[393605580,1762847456284,-572.56,0.00039686,120]
[393605581,1762847456293,-572.56,0.00039686,120]
[393605582,1762847456303,-572.56,0.00039686,120]
[393605583,1762847456314,-572.56,0.00039686,120]
[393605584,1762847456323,-572.56,0.00039686,120]
[393605585,1762847456332,-572.56,0.00039686,120]
[393605586,1762847456342,-572.56,0.00039686,120]
[393605587,1762847456352,-572.56,0.00039686,120]
[393605588,1762847456361,-572.56,0.00039686,120]
[393605589,1762847456370,-572.72,0.00039686,120]
[393605590,1762847456380,-1081002.92189085,0.00039686,7]
[393605591,1762847456393,-2079.41508082,0.00039686,7]
[393605592,1762847469151,195.0,0.00022956,120]
[393605603,1762848033976,-210.35387246,0.00017402,2]
[393605604,1762848034068,-196.42332754,0.00017402,2]
[393605605,1762848062860,58.65898851,0.00017402,2]
[393605617,1762848073511,-283.47696129,0.00017402,2]
[393605618,1762848073537,-127.27869693,0.00017402,2]
[393605619,1762848075629,-71.84391961,0.00017402,2]
[393605620,1762848075654,-178.15608039,0.00017402,2]
[393605623,1762848178481,-10.82856047,0.00017402,2]
[393605624,1762848178513,-184.17143953,0.00017612,2]
[393605625,1762848181937,-16.04287527,0.00017612,2]
[393605626,1762848181962,-151.0,0.00017612,2]
[393605627,1762848181986,-96.03384183,0.00017612,2]
[393605628,1762848184263,-226.96928171,0.00017612,2]
[393605629,1762848184290,-39.72983424,0.00017612,2]
[393605647,1762848631644,-52.36556715,0.00017612,2]
[393605648,1762848631654,-171.13,0.00018402,2]
[393605649,1762848631663,-156.27506629,0.00019022,2]
[393605650,1762848631672,-219.34,0.00019122,2]
[393605651,1762848631682,-173.8301671,0.00019273,2]
[393605652,1762848631691,-2.32604234,0.00019373,2]
[393605653,1762848631703,-192.67395766,0.00019373,2]
[393605654,1762848631712,-263.0767171,0.00019373,2]
[393605655,1762848631722,-284.21108294,0.00019373,2]
[393605656,1762848631731,-219.34,0.00020089,2]
[393605657,1762848631741,-219.34,0.00021056,2]
[393605658,1762848631751,-52.55965801,0.00021921,2]
[393605659,1762848631767,-565.0,0.00021921,2]
[393605660,1762848631778,-582.44034199,0.00021921,2]
[393605661,1762848631789,-1240.96948786,0.00021922,2]
[393605662,1762848631800,-1259.03051214,0.00021922,2]
[393605663,1762848631810,-300.0,0.0002202,2]
[393605664,1762848631819,-1200.0,0.0002202,2]
[393605665,1762848631830,-300.0,0.0002202,2]
[393605666,1762848631839,-302.0,0.00022021,2]
[393605667,1762848631850,-219.34,0.00022022,2]
[393605668,1762848631859,-6064.69,0.00022022,2]
[393605669,1762848631869,-18615.47,0.00022022,2]
[393605670,1762848631879,-500.0,0.00022917,2]
[393605671,1762848631888,-560.21688522,0.00022972,2]
[393605672,1762848631897,-219.34,0.00022989,2]
[393605673,1762848631907,-501.10265894,0.0002362,2]
[393605674,1762848631917,-402.90304553,0.0002362,2]
[393605675,1762848631927,-588.53559498,0.0002362,2]
[393605676,1762848631936,-173.83016709,0.00023783,2]
[393605678,1762848631945,-372.0,0.00023823,2]
[393605680,1762848631955,-2500.0,0.00023842,3]
[393605682,1762848631965,-156.27506628,0.00023842,2]
[393605684,1762848631974,-267.0,0.00023928,2]
[393605686,1762848631983,-151.0,0.00023942,2]
[393605688,1762848631992,-151.0,0.00023942,2]
[393605690,1762848632001,-151.0,0.00023942,2]
[393605693,1762848632011,-151.0,0.00023942,2]
[393605695,1762848632020,-151.0,0.00023942,2]
[393605696,1762848632029,-151.0,0.00023942,2]
[393605697,1762848632038,-151.0,0.00023942,2]
[393605698,1762848632047,-151.0,0.00023942,2]
[393605700,1762848632055,-151.0,0.00023942,2]
[393605702,1762848632065,-151.0,0.00023942,2]
[393605703,1762848632073,-151.0,0.00023942,2]
[393605704,1762848632082,-151.0,0.00023942,2]
[393605705,1762848632090,-151.0,0.00023942,2]
[393605706,1762848632099,-151.0,0.00023942,2]
[393605707,1762848632107,-151.0,0.00023942,2]
[393605708,1762848632116,-151.0,0.00023942,2]
[393605709,1762848632125,-151.0,0.00023942,2]
[393605710,1762848632134,-151.0,0.00023942,2]
[393605712,1762848632143,-151.0,0.00023942,2]
[393605714,1762848632152,-151.0,0.00023942,2]
[393605716,1762848632162,-151.0,0.00023942,2]
[393605718,1762848632171,-151.0,0.00023942,2]
[393605720,1762848632180,-151.0,0.00023942,2]
[393605722,1762848632190,-151.0,0.00023942,2]
[393605723,1762848632199,-151.0,0.00023942,2]
[393605725,1762848632209,-151.0,0.00023942,2]
[393605728,1762848632218,-151.0,0.00023942,2]
[393605729,1762848632228,-151.0,0.00023942,2]
[393605731,1762848632238,-151.0,0.00023942,2]
[393605734,1762848632248,-151.0,0.00023942,2]
[393605736,1762848632258,-151.0,0.00023942,2]
[393605737,1762848632268,-151.0,0.00023942,2]
[393605740,1762848632278,-151.0,0.00023942,2]
[393605742,1762848632287,-151.0,0.00023942,2]
[393605744,1762848632296,-151.0,0.00023942,2]
[393605746,1762848632306,-151.0,0.00023942,2]
[393605748,1762848632316,-151.0,0.00023942,2]
[393605750,1762848632329,-151.0,0.00023942,2]
[393605752,1762848632338,-151.0,0.00023942,2]
[393605754,1762848632347,-151.0,0.00023942,2]
[393605756,1762848632359,-254.62,0.00023942,2]
[393605758,1762848632369,-219.34,0.00023956,2]
[393605760,1762848632378,-500.0,0.00023973,2]
[393605762,1762848632387,-503.42717423,0.00023973,2]
[393605764,1762848632397,-160.29773987,0.00023973,2]
[393605766,1762848632406,-500.0,0.00023973,2]
[393605768,1762848632415,-500.0,0.00023973,2]
[393605770,1762848632424,-501.16416456,0.00024,2]
[393605772,1762848632434,-501.87005511,0.00024033,2]
[393605774,1762848632443,-500.0,0.00024033,2]
[393605776,1762848632452,-1680.0,0.0002404,2]
[393605778,1762848632461,-254.62,0.00024216,2]
[393605780,1762848632471,-254.62,0.0002449,2]
[393605782,1762848632480,-500.0,0.00024521,2]
[393605784,1762848632490,-254.62,0.00024764,2]
[393605786,1762848632499,-219.34,0.00024923,2]
[393605788,1762848632508,-254.63,0.00025038,2]
[393605790,1762848632517,-219.34,0.0002589,2]
[393605792,1762848632526,-500.0,0.00026087,2]
[393605794,1762848632535,-500.0,0.00026087,2]
[393605796,1762848632548,-500.0,0.00026087,2]
[393605798,1762848632559,-287.28214421,0.00026087,2]
[393605800,1762848632570,-500.0,0.00026087,2]
[393605802,1762848632579,-587.40245327,0.00026087,2]
[393605804,1762848632589,-500.0,0.00026087,2]
[393605806,1762848632599,-461.23369685,0.00026087,2]
[393605808,1762848632609,-1000.0,0.00026088,2]
[393605810,1762848632619,-151.58,0.00026139,2]
[393605812,1762848632630,-744.0,0.00026246,2]
[393605814,1762848632639,-219.34,0.00026857,2]
[393605816,1762848632647,-2452.23,0.00027173,2]
[393605818,1762848632657,-157.37,0.00027397,80]
[393605819,1762848632667,-999.0,0.00027406,3]
[393605820,1762848632677,-219.34,0.00027824,2]
[393605821,1762848632686,-173.83016709,0.00028292,2]
[393605822,1762848632696,-150.0,0.00028392,2]
[393605823,1762848632706,-150.0,0.00028392,2]
[393605824,1762848632716,-150.0,0.00028392,2]
[393605825,1762848632730,-151.59027207,0.00028392,2]
[393605826,1762848632740,-150.0,0.00028392,2]
[393605827,1762848632750,-150.0,0.00028529,2]
[393605828,1762848632760,-150.0,0.000286,30]
[393605829,1762848632772,-200.0,0.00028666,2]
[393605830,1762848632782,-219.34,0.00028791,2]
[393605831,1762848632791,-219.34,0.00029758,2]
[393605832,1762848632801,-219.34,0.00030725,2]
[393605833,1762848632811,-500.0,0.00031243,2]
[393605834,1762848632821,-219.34,0.00031692,2]
[393605835,1762848632830,-173.98,0.000324,30]
[393605836,1762848632839,-500.0,0.00032421,120]
[393605837,1762848632852,-217.83,0.00032546,32]
[393605838,1762848632861,-1912.123,0.00032546,32]
[393605839,1762848632871,-219.34,0.00032659,2]
[393605840,1762848632880,-151.58,0.00032674,2]
[393605841,1762848632889,-83711.00182676,0.00033428,2]
[393605842,1762848632902,-32779.54934292,0.00033428,2]
[393605843,1762848632914,-2022.37734242,0.00033428,2]
[393605844,1762848632925,-749.15726767,0.00033428,2]
[393605845,1762848632936,-32446.10422023,0.00033428,2]
[393605846,1762848632945,-219.34,0.00033626,2]
[393605847,1762848632955,-466.37400547,0.00033714,2]
[393605848,1762848632964,-365.29088627,0.00033889,2]
[393605849,1762848632974,-150.0,0.00034106,2]
[393605850,1762848632983,-150.168,0.00034106,2]
[393605851,1762848632993,-3426.0,0.00034106,2]
[393605852,1762848633003,-574.0,0.00034106,2]
[393605853,1762848633012,-280.92667303,0.00034107,7]
[393605854,1762848633022,-273.61415349,0.00034107,7]
[393605855,1762848633032,-500.0,0.00034107,7]
[393605856,1762848633041,-352.42386791,0.00034107,7]
[393605857,1762848633051,-1189.0,0.00034108,2]
[393605858,1762848633060,-906.0,0.00034108,2]
[393605859,1762848633071,-1430.301,0.00034108,2]
[393605860,1762848633082,-254.546,0.00034108,2]
[393605861,1762848633091,-624.20573824,0.000342,5]
[393605862,1762848633103,-500.0,0.000342,5]
[393605863,1762848633113,-503.9039651,0.000342,5]
[393605864,1762848633123,-219.34,0.00034593,2]
[393605865,1762848633133,-500.0,0.00034678,7]
[393605866,1762848633142,-500.0,0.00034727,7]
[393605867,1762848633153,-1500.0,0.000348,2]
[393605868,1762848633163,-500.0,0.00034813,7]
[393605869,1762848633173,-500.0,0.00034877,7]
[393605870,1762848633183,-500.0,0.00035088,30]
[393605871,1762848633194,-500.0,0.00035097,30]
[393605872,1762848633204,-500.0,0.00035104,30]
[393605873,1762848633213,-500.0,0.0003512,5]
[393605874,1762848633223,-246.2,0.00035166,120]
[393605875,1762848633233,-503.74052475,0.0003535,5]
[393605876,1762848633242,-700.0,0.00035435,30]
[393605877,1762848633252,-219.34,0.00035559,2]
[393605878,1762848633261,-1000.0,0.00035668,5]
[393605879,1762848633270,-479.0,0.00036204,2]
[393605880,1762848633280,-611.49324849,0.00036216,5]
[393605881,1762848633289,-479.0,0.00036492,7]
[393605882,1762848633298,-219.34,0.00036526,2]
[393605883,1762848633307,-1008.0,0.00036632,120]
[393605884,1762848633316,-479.0,0.00036659,2]
[393605885,1762848633326,-479.0,0.00036992,2]
[393605886,1762848633336,-479.0,0.00037001,7]
[393605887,1762848633345,-150.0,0.00037106,2]
[393605888,1762848633356,-3424.0,0.00037106,2]
[393605889,1762848633366,-1189.0,0.00037108,2]
[393605890,1762848633375,-906.0,0.00037108,2]
[393605891,1762848633385,-479.0,0.00037205,2]
[393605892,1762848633394,-1007.0,0.00037285,2]
[393605893,1762848633403,-479.0,0.00037407,2]
[393605894,1762848633413,-479.0,0.00037467,2]
[393605895,1762848633422,-219.34,0.00037493,2]
[393605896,1762848633431,-202.10593952,0.00037574,2]
[393605897,1762848633440,-479.0,0.00037644,2]
[393605898,1762848633450,-500.90177288,0.0003765,5]
[393605899,1762848633459,-500.66231134,0.0003765,5]
[393605900,1762848633469,-1007.0,0.00037662,2]
[393605901,1762848633478,-479.0,0.00038,2]
[393605902,1762848633488,-2452.23,0.00038042,2]
[393605903,1762848633505,-500.0,0.00038042,7]
[393605904,1762848633517,-500.0,0.00038042,7]
[393605905,1762848633527,-500.0,0.00038042,7]
[393605906,1762848633537,-202.10593952,0.00038064,2]
[393605907,1762848633549,-202.10593952,0.00038123,2]
[393605908,1762848633559,-4463.0,0.00038227,5]
[393605909,1762848633568,-500.0,0.00038356,2]
[393605910,1762848633579,-202.10593952,0.0003846,2]
[393605911,1762848633588,-1500.0,0.000385,2]
[393605912,1762848633598,-202.10593952,0.00038651,2]
[393605913,1762848633608,-479.0,0.00038722,120]
[393605914,1762848633619,-840.0,0.000388,5]
[393605915,1762848633629,-479.0,0.00038842,2]
[393605916,1762848633639,-1041.54385168,0.00038892,20]
[393605917,1762848633649,-1093.27785616,0.00038892,20]
[393605918,1762848633658,-1134.65112821,0.00038892,20]
[393605919,1762848633668,-1030.9202321,0.00038892,20]
[393605920,1762848633677,-1092.98214945,0.00038892,20]
[393605921,1762848633687,-1076.04149994,0.00038892,20]
[393605922,1762848633696,-1002.41703671,0.00038892,20]
[393605923,1762848633707,-1051.41403384,0.00038892,20]
[393605924,1762848633716,-1309.67740136,0.00038892,20]
[393605925,1762848633726,-479.0,0.00038894,2]
[393605926,1762848633736,-1688.00854499,0.00038918,2]
[393605927,1762848633745,-1007.0,0.00038954,7]
[393605928,1762848633755,-1008.0,0.00038974,7]
[393605929,1762848633764,-681.3307526,0.00039,7]
[393605930,1762848633773,-1008.0,0.00039026,2]
[393605931,1762848633784,-1007.0,0.00039063,120]
[393605932,1762848633793,-366.4923,0.00039087,2]
[393605933,1762848633802,-2133.6774,0.00039087,2]
[393605934,1762848633811,-202.10593952,0.00039138,2]
[393605935,1762848633821,-151.85102307,0.0003917,2]
[393605936,1762848633830,-1087.03267468,0.00039177,2]
[393605937,1762848633840,-169.3200387,0.0003918,15]
[393605938,1762848633851,-5000.0,0.00039187,30]
[393605939,1762848633861,-729.13847453,0.0003919,14]
[393605940,1762848633871,-1688.00854499,0.00039203,2]
[393605941,1762848633880,-202.10593954,0.00039203,2]
[393605942,1762848633890,-151.58,0.00039209,2]
[393605943,1762848633900,-479.0,0.00039223,7]
[393605944,1762848633909,-1087.03267462,0.00039224,2]
[393605945,1762848633918,-151.85102307,0.00039241,2]
[393605946,1762848633927,-17136.56285302,0.00039267,4]
[393605947,1762848633945,-1307.73431428,0.00039267,4]
[393605948,1762848633957,-1584.72423485,0.00039267,4]
[393605949,1762848633967,-4481.67546,0.00039267,4]
[393605950,1762848633979,-511.0378761,0.00039267,4]
[393605958,1762848637512,-1193.75291212,0.00039267,4]
[393605960,1762848637524,-2274.33594372,0.00039267,4]
[393605962,1762848637562,-419.075,0.00039267,4]
[393605963,1762848637573,-6242.00409554,0.00039267,4]
[393605964,1762848637768,-4469.34245051,0.00039267,4]
[393605973,1762848639711,-562.8,0.00039267,4]
[393605974,1762848639723,-1408.96817405,0.00039267,4]
[393605975,1762848639939,-7954.08247701,0.00039267,4]
[393605976,1762848639949,-428.91752299,0.0003927,2]
[393605977,1762848639962,-658.11515163,0.0003927,2]
[393605978,1762848639972,-5505.12175458,0.00039276,4]
[393605979,1762848639982,-1381.76309379,0.00039277,4]
[393605983,1762848643101,-537.5813845,0.00039277,4]
[393605984,1762848643152,-4200.0,0.00039277,4]
[393605986,1762848643631,-1568.52387099,0.00039277,4]
[393605999,1762848645803,-655.9187631,0.00039277,4]
[393606000,1762848645852,-24247.45184316,0.00039277,4]
[393606001,1762848645865,-53045.11791045,0.00039277,4]
[393606002,1762848645899,-370.38237906,0.00039277,4]
[393606003,1762848645911,-2450.0,0.00039277,4]
[393606004,1762848645925,-10286.54000002,0.00039277,4]
[393606005,1762848646290,-417.16347316,0.00039277,4]
[393606006,1762848646302,-306.44999679,0.00039277,4]
[393606017,1762849093144,1112.34216281,0.000166,2]
[393606018,1762849093457,1111.0,0.000166,2]
[393606019,1762849093775,1111.0,0.000166,2]
[393606026,1762849317810,510.25505516,0.00023,120]
[393606027,1762849330573,163.27,0.000215,120]
[393606031,1762849671301,2748.23926053,0.00015,2]
[393606032,1762849671324,6082.58142334,0.00015,2]
[393606033,1762849671348,6082.58142334,0.00015,2]
[393606034,1762849671373,6082.58142334,0.00015,2]
[393606035,1762849671396,6082.58142334,0.00015,2]
[393606036,1762849671420,6082.58142334,0.00015,2]
[393606037,1762849671443,6082.58142334,0.00015,2]
[393606038,1762849671467,6082.58142334,0.00015,2]
[393606039,1762849671491,6082.58142334,0.00015,2]
[393606040,1762849671514,6082.58142334,0.00015,2]
[393606041,1762849671541,20000.0,0.00015,2]
[393606042,1762849671568,835630.78105197,0.00015,2]
[393606043,1762849672260,-250.0,0.00015,2]
[393606044,1762849675888,-181.6857788,0.00015,2]
[393606045,1762849678732,-234.18154421,0.00015,2]
[393606046,1762849682347,-278.62575656,0.00015,2]
[393606047,1762849685994,-259.84459225,0.00015,2]
[393606048,1762849687782,565.84422964,0.000135,2]
[393606049,1762849688841,360.334934,0.000165,4]
[393606050,1762849689396,-459.50637106,0.00015,2]
[393606051,1762849691062,-277.24110556,0.00015,2]
[393606052,1762849696279,-273.76431158,0.00015,2]
[393606053,1762849697743,-306.51349109,0.00015,2]
[393606054,1762849701798,-151.0,0.00014997,2]
[393606055,1762849701823,-118.20924952,0.00015,2]
[393606056,1762849703245,-297.83299363,0.00015,2]
[393606057,1762849706016,-151.81550258,0.00015,2]
[393606058,1762849708823,-500.0,0.00015,2]
[393606059,1762849710952,-240.80516453,0.00015,2]
[393606061,1762849712520,-161.15,0.00014999,2]
[393606062,1762849714315,-234.19055155,0.00014999,2]
[393606063,1762849715999,-201.35615599,0.00014999,2]
[393606064,1762849716025,-146.07167504,0.00014999,2]
[393606065,1762849717962,-45.45823241,0.00014999,2]
[393606066,1762849717987,-121.20176759,0.00014999,2]
[393606067,1762849721256,-75.44690353,0.00014999,2]
[393606068,1762849721287,-92.04486832,0.00014999,2]
[393606070,1762849724006,-268.02000949,0.00014999,2]
[393606071,1762849726757,-139.93512219,0.00014999,2]
[393606072,1762849726786,-111.89106025,0.00014999,2]
[393606073,1762849728375,-182.94134438,0.00014999,2]
[393606074,1762849731844,-200.0,0.00014999,2]
[393606075,1762849734288,-5.16759537,0.00014999,2]
[393606076,1762849734322,-342.90678069,0.00014999,2]
[393606077,1762849736654,-157.09321931,0.00014999,2]
[393606078,1762849736684,-159.46214866,0.00014999,2]
[393606079,1762849738901,-340.53785134,0.00014999,2]
[393606080,1762849738933,-52.57207433,0.00014999,2]
[393606081,1762849741751,-159.93849102,0.00014999,2]
[393606082,1762849745005,914.88289143,0.00016499,4]
[393606083,1762849745240,-324.26015561,0.00014959,2]
[393606084,1762849747378,-183.45986164,0.00014959,2]
[393606085,1762849752495,-305.58337384,0.00014959,2]
[393606086,1762849754599,-185.12514915,0.00014959,2]
[393606087,1762849757398,-202.60667225,0.00014959,2]
[393606088,1762849761315,-168.01771914,0.00014959,2]
[393606089,1762849761628,896.15879611,0.00014999,5]
[393606090,1762849763484,-313.20967087,0.00014959,2]
[393606091,1762849766940,-345.2269627,0.00014959,2]
[393606092,1762849768099,-536.99488453,0.00014959,2]
[393606094,1762849772106,-536.36223236,0.00014959,2]
[393606095,1762849773929,376.36,0.00013699,2]
[393606096,1762849775044,-222.31368314,0.00014959,2]
[393606097,1762849778348,-173.41745945,0.00014959,2]
[393606098,1762849782131,-250.0,0.00014959,2]
[393606099,1762849784232,-194.41662616,0.00014959,2]
[393606100,1762849786461,-258.36779592,0.00014959,2]
[393606101,1762849789587,-171.07231122,0.00014959,2]
[393606102,1762849791693,-378.93722038,0.00014959,2]
[393606103,1762849794416,-186.7934101,0.00014959,2]
[393606104,1762849797083,-268.29172005,0.00014959,2]
[393606105,1762849801425,-239.07632358,0.00014959,2]
[393606107,1762849807053,-300.0,0.00014958,2]
[393606108,1762849808953,-161.92367642,0.000149,2]
[393606109,1762849809352,3676.96633259,0.00016454,4]
[393606110,1762849814952,-166.66,0.000149,2]
[393606111,1762849818443,-167.75792374,0.000149,2]
[393606112,1762849818466,-47.84373792,0.00014958,2]
[393606114,1762849821969,-245.96501431,0.00014958,2]
[393606115,1762849823623,-6.19124777,0.00014958,2]
[393606116,1762849823647,-189.36281362,0.00014958,2]
[393606117,1762849825144,-110.63718638,0.00014958,2]
[393606118,1762849825172,-143.67431215,0.00014958,2]
[393606119,1762849827320,-333.34,0.00014958,2]
[393606120,1762849830474,-198.33516949,0.00014958,2]
[393606125,1762849831728,-511.27727383,0.00014958,2]
[393606128,1762849831743,-13.37324453,0.00014958,2]
[393606131,1762849831753,-300.0,0.00014958,2]
[393606132,1762849831763,-300.0,0.00014958,2]
[393606133,1762849831772,-250.0,0.00014958,2]
[393606134,1762849831782,-12.51602904,0.00014958,2]
[393606135,1762849831809,-287.48397096,0.00014958,2]
[393606136,1762849831819,-195.0,0.00014958,2]
[393606137,1762849831829,-193.0,0.00014958,2]
[393606138,1762849831838,-4304.34018622,0.00014959,2]
[393606139,1762849831910,-4498.31984365,0.00014959,2]
[393606140,1762849831923,-3126.80673804,0.00014959,2]
[393606141,1762849831934,-421.25232649,0.00014973,2]
[393606142,1762849831971,-78.74767351,0.00014973,2]
[393606143,1762849831983,-500.0,0.00014973,2]
[393606144,1762849831992,-293.23258231,0.0001498,2]
[393606145,1762849832005,-6.76741769,0.0001498,2]
[393606146,1762849832015,-195.0,0.0001498,2]
[393606147,1762849832025,-218.29082256,0.00014982,2]
[393606148,1762849832034,-3.79087559,0.0001499,2]
[393606149,1762849832045,-801.98263016,0.0001499,2]
[393606150,1762849832057,-282.70518994,0.0001499,2]
[393606151,1762849832066,-1088.47869569,0.0001499,2]
[393606152,1762849832075,-151.0,0.00014997,2]
[393606153,1762849832085,-150.0,0.00014998,2]
[393606154,1762849832095,-287.48943465,0.00014999,2]
[393606155,1762849832105,-500.0,0.00014999,2]
[393606156,1762849832114,-500.0,0.00014999,2]
[393606157,1762849832123,-388.1366983,0.00014999,2]
[393606158,1762849832149,-111.8633017,0.00014999,2]
[393606159,1762849832159,-500.0,0.00014999,2]
[393606160,1762849832168,-439.1366983,0.00014999,2]
[393606185,1762849832589,-60.8633017,0.00014999,2]
[393606187,1762849832616,-231.2840348,0.00014999,2]
[393606188,1762849834298,-162.92753442,0.00014999,2]
[393606189,1762849835629,-105.78843078,0.00014999,2]
[393606190,1762849835657,-89.21156922,0.00014999,2]
[393606193,1762849837714,-410.78843078,0.00014999,2]
[393606194,1762849837725,-376.20513952,0.00014999,2]
[393606195,1762849837739,-123.79486048,0.00014999,2]
[393606196,1762849837750,-500.0,0.00014999,2]
[393606197,1762849837760,-500.0,0.00014999,2]
[393606198,1762849837770,-500.0,0.00014999,2]
[393606199,1762849837780,-459.84392993,0.00014999,2]
[393606200,1762849837790,-500.0,0.00014999,2]
[393606201,1762849837800,-500.0,0.00014999,2]
[393606202,1762849837811,-500.0,0.00014999,2]
[393606203,1762849837823,-500.0,0.00014999,2]
[393606204,1762849837834,-500.0,0.00014999,2]
[393606205,1762849837845,-324.26015561,0.00014999,2]
[393606206,1762849837856,-92.01361122,0.00014999,2]
[393606207,1762849837869,-213.56976262,0.00014999,2]
[393606208,1762849837880,-500.0,0.00014999,2]
[393606209,1762849837894,-500.0,0.00014999,2]
[393606210,1762849837908,-500.0,0.00014999,2]
[393606211,1762849837918,-624.93753822,0.00014999,2]
[393606212,1762849837930,-197.24291351,0.00014999,2]
[393606213,1762849837940,-288.23541076,0.00014999,2]
[393606214,1762849837950,-351.21493194,0.00014999,2]
[393606215,1762849837961,-500.0,0.00014999,2]
[393606216,1762849837972,-500.0,0.00014999,2]
[393606217,1762849837983,-500.0,0.00014999,2]
[393606218,1762849837993,-500.0,0.00014999,2]
[393606219,1762849838003,-79.36860191,0.00014999,2]
[393606220,1762849838016,-420.63139809,0.00014999,2]
[393606221,1762849838025,-500.0,0.00014999,2]
[393606222,1762849838036,-500.0,0.00014999,2]
[393606223,1762849838047,-500.0,0.00014999,2]
[393606224,1762849838058,-500.0,0.00014999,2]
[393606225,1762849838069,-500.0,0.00014999,2]
[393606226,1762849838084,-134.53346891,0.00014999,2]
[393606227,1762849838097,-365.46653109,0.00014999,2]
[393606228,1762849838108,-500.0,0.00014999,2]
[393606229,1762849838118,-500.0,0.00014999,2]
[393606230,1762849838128,-500.0,0.00014999,2]
[393606231,1762849838141,-500.0,0.00014999,2]
[393606233,1762849838151,-500.0,0.00014999,2]
[393606236,1762849838161,-500.0,0.00014999,2]
[393606238,1762849838171,-500.0,0.00014999,2]
[393606240,1762849838182,-500.0,0.00014999,2]
[393606242,1762849838192,-92.51864441,0.00015,2]
[393606245,1762849838205,-82.8530813,0.00015,2]
[393606248,1762849838216,-5270.4001632,0.00015,2]
[393606251,1762849838227,-5574.83186308,0.00015,2]
[393606253,1762849838240,-2217.072792,0.00015,2]
[393606255,1762849838251,-662.671405,0.00015,2]
[393606258,1762849838272,-2220.44050272,0.00015,2]
[393606262,1762849838303,-181.61726826,0.00015,2]
[393606263,1762849838316,-2180.13570943,0.00015,2]
[393606264,1762849838333,-1627.4,0.00015,2]
[393606265,1762849838374,-500.0,0.00014999,2]
[393606266,1762849838386,-3888238.25664279,0.00015,2]
[393606267,1762849838397,-15293.15688197,0.00015,2]
[393606268,1762849838407,-3380.329014,0.000153,2]
[393606269,1762849838418,-1000.0,0.00015521,2]
[393606270,1762849838427,-500.94902408,0.00015521,2]
[393606271,1762849838439,-1500.0,0.00016068,2]
[393606272,1762849838449,-255.0,0.00016123,2]
[393606273,1762849838465,-420.0,0.00016371,2]
[393606274,1762849838475,-420.0,0.00016371,2]
[393606275,1762849838486,-500.0,0.00016438,2]
[393606276,1762849838496,-500.0,0.00016438,2]
[393606277,1762849838506,-500.0,0.00016438,2]
[393606278,1762849838516,-500.0,0.00016438,2]